fUST/lending_fUST_20250730
["ID","MTS","AMOUNT","RATE_DAILY","PERIOD"]
[376066747,1753848646598,-154.7647222,0.00020274,2]
[376066749,1753848646607,-153.0,0.00020274,2]
[376066751,1753848646616,-153.0,0.00020274,2]
[376066753,1753848646626,-578.2915207,0.00020274,2]
[376066755,1753848646635,-153.0,0.00020274,2]
[376066757,1753848646644,-153.0,0.00020274,2]
[376066759,1753848646653,-578.2915207,0.00020274,2]
[376066761,1753848646663,-654.89576711,0.00020293,2]
[376066763,1753848646672,-596.7738029,0.00020301,2]
[376066765,1753848646681,-500.0,0.00020332,2]
[376066767,1753848646690,-460.0,0.0002051,2]
[376066769,1753848646699,-512.73,0.00020511,2]
[376066771,1753848646708,-460.0,0.00020511,2]
[376066773,1753848646718,-460.0,0.00020511,2]
[376066775,1753848646732,-460.0,0.00020512,2]
[376066777,1753848646741,-460.0,0.00020512,2]
[376066779,1753848646750,-547.77,0.00020512,2]
[376066781,1753848646761,-942.44,0.00020512,2]
[376066783,1753848646772,-765.09,0.00020513,2]
[376066784,1753848646782,-815.39,0.00020513,2]
[376066785,1753848646791,-460.0,0.00020513,2]
[376066786,1753848646800,-1399.44,0.00020513,2]
[376066787,1753848646810,-460.0,0.00020514,2]
[376066788,1753848646819,-460.0,0.00020514,2]
[376066789,1753848646828,-460.0,0.00020514,2]
[376066790,1753848646838,-460.0,0.00020514,2]
[376066791,1753848646847,-929.79,0.00020533,2]
[376066792,1753848646856,-761.18,0.00020533,2]
[376066793,1753848646868,-460.0,0.00020533,2]
[376066794,1753848646878,-366.04354699,0.00020533,2]
[376066795,1753848646888,-460.0,0.00020533,2]
[376066796,1753848646898,-460.0,0.00020533,2]
[376066797,1753848646907,-460.0,0.00020547,2]
[376066798,1753848646919,-23615.03145464,0.00020599,2]
[376066799,1753848646929,-151.0,0.00020599,2]
[376066800,1753848646938,-164.76471132,0.00020599,2]
[376066801,1753848646947,-1000.0,0.00020608,2]
[376066802,1753848646956,-460.0,0.00020784,2]
[376066803,1753848646965,-512.73,0.00020785,2]
[376066804,1753848646975,-460.0,0.00020785,2]
[376066805,1753848646984,-460.0,0.00020785,2]
[376066806,1753848646994,-385.51790252,0.00020786,2]
[376066807,1753848647003,-460.0,0.00020786,2]
[376066808,1753848647012,-547.77,0.00020786,2]
[376066809,1753848647021,-942.44,0.00020786,2]
[376066810,1753848647030,-765.09,0.00020787,2]
[376066811,1753848647049,-815.39,0.00020787,2]
[376066812,1753848647059,-233.85844229,0.00020787,2]
[376066813,1753848647068,-1399.44,0.00020787,2]
[376066814,1753848647078,-293.0,0.00020788,2]
[376066815,1753848647087,-460.0,0.00020788,2]
[376066816,1753848647096,-460.0,0.00020788,2]
[376066817,1753848647106,-460.0,0.00020788,2]
[376066818,1753848647115,-929.79,0.00020807,2]
[376066819,1753848647125,-761.18,0.00020807,2]
[376066820,1753848647134,-460.0,0.00020807,2]
[376066821,1753848647143,-460.0,0.00020807,2]
[376066822,1753848647153,-460.0,0.00020807,2]
[376066823,1753848647164,-460.0,0.00020821,2]
[376066824,1753848647173,-160.0,0.0002094,2]
[376066825,1753848647183,-214.22648914,0.0002096,2]
[376066826,1753848647194,-654.89576711,0.00020995,2]
[376066827,1753848647206,-1222.37951279,0.00020996,2]
[376066828,1753848647215,-1636.71526095,0.00021,2]
[376066903,1753849280539,4232.15388232,0.0001879,2]
[376066905,1753849289038,5000.0,0.0001879,2]
[376066906,1753849316286,9375.32,0.0001879,2]
[376066916,1753849585236,249.352143,0.00013699,2]
[376066919,1753849604563,615.0,0.0001879,2]
[376066923,1753849668969,29573.7918502,0.00018,2]
[376066924,1753849671293,1000.0,0.00018524,2]
[376066925,1753849715448,1265.07201991,0.00018,2]
[376066926,1753849716165,518.71634105,0.00018,2]
[376066954,1753849832634,-516.68813552,0.000189,2]
[376066955,1753849832645,-51.07946853,0.00019141,2]
[376066979,1753849838723,-798.52629353,0.00019141,2]
[376066980,1753849838887,-184.39423794,0.00019141,2]
[376066981,1753849838896,-269.27819751,0.00019142,2]
[376066982,1753849838910,-141.99657616,0.00019142,2]
[376066983,1753849838920,-460.0,0.00019142,2]
[376066984,1753849838929,-460.0,0.00019142,2]
[376066985,1753849838938,-460.0,0.00019142,2]
[376066986,1753849838948,-460.0,0.00019142,2]
[376066987,1753849838957,-760.03,0.00019143,2]
[376066988,1753849838967,-500.0,0.00019164,2]
[376066989,1753849838976,-460.0,0.00019177,2]
[376066990,1753849838986,-460.0,0.00019177,2]
[376066991,1753849838995,-179.799288,0.00019178,2]
[376066992,1753849839004,-460.0,0.00019416,2]
[376066993,1753849839013,-460.0,0.00019416,2]
[376066994,1753849839023,-460.0,0.00019416,2]
[376066995,1753849839032,-760.03,0.00019417,2]
[376066996,1753849839043,-143.47011995,0.00019424,2]
[376066997,1753849839054,-8.35672072,0.00019424,2]
[376066998,1753849839064,-460.0,0.00019451,2]
[376066999,1753849839073,-460.0,0.00019451,2]
[376067000,1753849839082,-463.11569374,0.00019523,2]
[376067001,1753849839091,-464.26496407,0.00019523,2]
[376067002,1753849839100,-678.83,0.00019523,2]
[376067003,1753849839110,-460.0,0.00019523,2]
[376067004,1753849839119,-460.0,0.00019523,2]
[376067005,1753849839128,-460.0,0.00019523,2]
[376067006,1753849839138,-460.0,0.00019523,2]
[376067007,1753849839151,-462.14564478,0.00019523,2]
[376067008,1753849839160,-566.13,0.00019523,2]
[376067009,1753849839170,-577.57,0.00019523,2]
[376067010,1753849839179,-460.0,0.00019523,2]
[376067011,1753849839190,-567.49,0.00019523,2]
[376067012,1753849839200,-460.0,0.00019523,2]
[376067013,1753849839209,-460.0,0.00019523,2]
[376067014,1753849839218,-460.0,0.00019523,2]
[376067015,1753849839229,-460.0,0.00019523,2]
[376067016,1753849839238,-460.0,0.00019523,2]
[376067017,1753849839247,-460.0,0.00019523,2]
[376067018,1753849839257,-460.0,0.00019523,2]
[376067019,1753849839266,-470.42614308,0.00019523,2]
[376067020,1753849839276,-460.0,0.00019523,2]
[376067021,1753849839285,-460.0,0.00019523,2]
[376067022,1753849839294,-1026.88,0.00019523,2]
[376067023,1753849839303,-460.0,0.00019523,2]
[376067024,1753849839316,-460.88779709,0.00019523,2]
[376067025,1753849839325,-460.0,0.00019523,2]
[376067026,1753849839335,-460.0,0.00019523,2]
[376067027,1753849839346,-460.0,0.00019523,2]
[376067028,1753849839355,-460.0,0.00019523,2]
[376067029,1753849839365,-460.0,0.00019523,2]
[376067030,1753849839375,-460.0,0.00019523,2]
[376067031,1753849839385,-460.0,0.00019523,2]
[376067032,1753849839396,-468.65180991,0.00019523,2]
[376067033,1753849839407,-497.75434228,0.00019523,2]
[376067034,1753849839418,-460.0,0.00019523,2]
[376067035,1753849839428,-460.0,0.00019523,2]
[376067036,1753849839438,-200.0,0.00019524,15]
[376067037,1753849839448,-200.0,0.00019524,15]
[376067038,1753849839458,-200.0,0.00019524,15]
[376067039,1753849839468,-200.0,0.00019524,15]
[376067040,1753849839478,-200.0,0.00019524,15]
[376067041,1753849839487,-200.0,0.00019524,15]
[376067042,1753849839497,-200.0,0.00019524,15]
[376067043,1753849839506,-200.0,0.00019524,15]
[376067044,1753849839516,-200.0,0.00019524,15]
[376067045,1753849839525,-200.0,0.00019524,15]
[376067046,1753849839535,-200.0,0.00019524,15]
[376067047,1753849839545,-200.0,0.00019524,15]
[376067048,1753849839555,-200.0,0.00019524,15]
[376067049,1753849839564,-200.0,0.00019524,15]
[376067050,1753849839574,-200.0,0.00019524,15]
[376067051,1753849839583,-200.0,0.00019524,15]
[376067052,1753849839592,-500.0,0.00019524,15]
[376067053,1753849839603,-460.0,0.0001969,2]
[376067054,1753849839613,-460.0,0.0001969,2]
[376067055,1753849839623,-460.0,0.0001969,2]
[376067056,1753849839634,-760.03,0.00019691,2]
[376067057,1753849839643,-153.0,0.000197,2]
[376067058,1753849839654,-578.2915207,0.000197,2]
[376067059,1753849839664,-578.2915207,0.000197,2]
[376067060,1753849839673,-578.2915207,0.000197,2]
[376067061,1753849839683,-578.2915207,0.000197,2]
[376067062,1753849839692,-460.0,0.00019725,2]
[376067063,1753849839701,-460.0,0.00019725,2]
[376067064,1753849839710,-153.0,0.00019778,2]
[376067065,1753849839720,-578.2915207,0.00019778,2]
[376067066,1753849839729,-153.0,0.00019778,2]
[376067067,1753849839739,-678.83,0.00019797,2]
[376067068,1753849839751,-566.13,0.00019797,2]
[376067069,1753849839760,-577.57,0.00019797,2]
[376067070,1753849839772,-567.49,0.00019797,2]
[376067071,1753849839782,-460.0,0.00019797,2]
[376067072,1753849839793,-460.0,0.00019797,2]
[376067073,1753849839803,-460.0,0.00019797,2]
[376067074,1753849839813,-1026.88,0.00019797,2]
[376067075,1753849839822,-460.0,0.00019797,2]
[376067076,1753849839832,-460.0,0.00019797,2]
[376067077,1753849839842,-209.83,0.00019797,2]
[376067078,1753849839852,-338.00666918,0.000199,2]
[376067079,1753849839861,-460.0,0.00019964,2]
[376067080,1753849839870,-460.0,0.00019964,2]
[376067081,1753849839881,-460.0,0.00019964,2]
[376067082,1753849839890,-760.03,0.00019965,2]
[376067083,1753849839901,-460.0,0.00019999,2]
[376067084,1753849839910,-460.0,0.00019999,2]
[376067085,1753849839920,-157.1,0.0002,2]
[376067086,1753849839929,-4096.78419817,0.0002,2]
[376067118,1753849840525,-1354.59964158,0.0002,2]
[376067126,1753849840586,-460.0,0.00019177,2]
[376067128,1753849840596,-367.25093297,0.0002,2]
[376067133,1753849840640,-15196.83377139,0.0002,2]
[376067135,1753849840650,-22029.68436772,0.0002,2]
[376067137,1753849840660,-1290.21964815,0.0002,2]
[376067139,1753849840669,-678.83,0.00020071,2]
[376067141,1753849840679,-566.13,0.00020071,2]
[376067144,1753849840688,-577.57,0.00020071,2]
[376067146,1753849840698,-567.49,0.00020071,2]
[376067148,1753849840707,-460.0,0.00020071,2]
[376067150,1753849840716,-460.0,0.00020071,2]
[376067152,1753849840726,-460.0,0.00020071,2]
[376067153,1753849840735,-1026.88,0.00020071,2]
[376067156,1753849840744,-460.0,0.00020071,2]
[376067157,1753849840754,-294.0379374,0.00020071,2]
[376067159,1753849840763,-500.0,0.0002008,2]
[376067161,1753849840772,-338.00666895,0.00020107,2]
[376067164,1753849840781,-249.352143,0.00020187,2]
[376067166,1753849840790,-160.0,0.00020227,2]
[376067168,1753849840800,-216.14611358,0.00020227,2]
[376067170,1753849840809,-160.0,0.00020227,2]
[376067171,1753849840819,-526.76118213,0.00020227,2]
[376067174,1753849840828,-841.2246943,0.00020227,2]
[376067176,1753849840837,-12639.5777639,0.00020227,2]
[376067177,1753849840847,-460.0,0.00020238,2]
[376067179,1753849840856,-460.0,0.00020238,2]
[376067182,1753849840866,-609.27,0.00020238,2]
[376067184,1753849840875,-760.03,0.00020239,2]
[376067186,1753849840885,-460.0,0.00020273,2]
[376067188,1753849840894,-460.0,0.00020273,2]
[376067190,1753849840905,-338.00666895,0.00020314,3]
[376067192,1753849840915,-678.83,0.00020345,2]
[376067194,1753849840925,-566.13,0.00020345,2]
[376067196,1753849840934,-577.57,0.00020345,2]
[376067198,1753849840943,-567.49,0.00020345,2]
[376067199,1753849840952,-460.0,0.00020345,2]
[376067202,1753849840962,-460.0,0.00020345,2]
[376067204,1753849840971,-460.0,0.00020345,2]
[376067206,1753849840982,-1026.88,0.00020345,2]
[376067207,1753849840991,-460.0,0.00020345,2]
[376067210,1753849841001,-500.0,0.0002045,2]
[376067212,1753849841011,-583.5,0.00020512,2]
[376067214,1753849841021,-460.0,0.00020512,2]
[376067216,1753849841030,-760.03,0.00020513,2]
[376067218,1753849841039,-338.00666895,0.00020521,3]
[376067220,1753849841049,-460.0,0.00020547,2]
[376067222,1753849841058,-460.0,0.00020547,2]
[376067224,1753849841067,-151.0,0.00020599,2]
[376067226,1753849841078,-678.83,0.00020619,2]
[376067228,1753849841087,-566.13,0.00020619,2]
[376067230,1753849841096,-577.57,0.00020619,2]
[376067232,1753849841105,-567.49,0.00020619,2]
[376067234,1753849841115,-460.0,0.00020619,2]
[376067236,1753849841124,-460.0,0.00020619,2]
[376067238,1753849841134,-460.0,0.00020619,2]
[376067240,1753849841147,-1026.88,0.00020619,2]
[376067242,1753849841156,-460.0,0.00020619,2]
[376067244,1753849841165,-338.00666895,0.00020728,3]
[376067246,1753849841175,-460.0,0.00020786,2]
[376067248,1753849841184,-760.03,0.00020787,2]
[376067250,1753849841193,-460.0,0.00020821,2]
[376067252,1753849841203,-460.0,0.00020821,2]
[376067254,1753849841212,-678.83,0.00020893,2]
[376067256,1753849841222,-566.13,0.00020893,2]
[376067258,1753849841231,-577.57,0.00020893,2]
[376067260,1753849841241,-567.49,0.00020893,2]
[376067262,1753849841250,-460.0,0.00020893,2]
[376067264,1753849841259,-460.0,0.00020893,2]
[376067266,1753849841269,-489.80831699,0.00020893,2]
[376067268,1753849841278,-1026.88,0.00020893,2]
[376067270,1753849841288,-460.0,0.00020893,2]
[376067272,1753849841297,-338.00666895,0.00020934,4]
[376067274,1753849841306,-1000.0,0.00020998,2]
[376067276,1753849841315,-1363.28473905,0.00021,2]
[376067278,1753849841325,-1170.46464847,0.00021,2]
[376067280,1753849841334,-155.0,0.00021,2]
[376067282,1753849841344,-3000.0,0.0002101,2]
[376067284,1753849841355,-3000.0,0.0002102,2]
[376067286,1753849841365,-3000.0,0.0002103,2]
[376067288,1753849841374,-3000.0,0.0002104,2]
[376067290,1753849841383,-312.16666667,0.0002104,10]
[376067292,1753849841392,-3000.0,0.0002105,2]
[376067294,1753849841402,-3000.0,0.0002106,2]
[376067296,1753849841411,-460.0,0.0002106,2]
[376067298,1753849841421,-760.03,0.00021061,2]
[376067300,1753849841431,-15.41473642,0.0002107,2]
[376067516,1753849843492,-460.0,0.00019451,2]
[376067518,1753849843502,-357.84,0.00019725,2]
[376067520,1753849843513,-102.16,0.00019725,2]
[376067522,1753849843523,-460.0,0.00019999,2]
[376067524,1753849843532,-460.0,0.00020273,2]
[376067526,1753849843541,-200.0,0.00020399,15]
[376067528,1753849843551,-200.0,0.00020399,15]
[376067530,1753849843560,-2156.82125641,0.0002107,2]
[376067532,1753849843572,-827.76400717,0.0002107,2]
[376067535,1753849843581,-585.23232424,0.0002107,2]
[376067537,1753849843591,-3000.0,0.0002108,2]
[376067539,1753849843600,-3000.0,0.0002109,2]
[376067541,1753849843610,-460.0,0.00021095,2]
[376067543,1753849843625,-351.2,0.00021095,2]
[376067545,1753849843642,-3000.0,0.000211,2]
[376067547,1753849843660,-312.75,0.000211,3]
[376067549,1753849843669,-3000.0,0.0002111,2]
[376067551,1753849843678,-2887.34741659,0.0002112,2]
[376067553,1753849843690,-112.65258341,0.0002112,2]
[376067555,1753849843699,-984.73773708,0.0002113,2]
[376067750,1753849846501,-200.0,0.00020399,15]
[376067751,1753849846511,-200.0,0.00020399,15]
[376067752,1753849846522,-200.0,0.00020399,15]
[376067753,1753849846531,-460.0,0.00020547,2]
[376067754,1753849846541,-460.0,0.00020821,2]
[376067755,1753849846551,-460.0,0.00021095,2]
[376067756,1753849846561,-2015.26226292,0.0002113,2]
[376067757,1753849846571,-292.61616212,0.0002113,2]
[376067758,1753849846580,-3000.0,0.0002114,2]
[376067759,1753849846590,-338.00666895,0.00021141,4]
[376067760,1753849846599,-3000.0,0.0002115,2]
[376067761,1753849846608,-469.16,0.0002115,3]
[376067762,1753849846618,-3000.0,0.0002116,2]
[376067764,1753849846627,-678.83,0.00021167,2]
[376067766,1753849846636,-566.13,0.00021167,2]
[376067768,1753849846646,-577.57,0.00021167,2]
[376067770,1753849846656,-567.49,0.00021167,2]
[376067772,1753849846665,-460.0,0.00021167,2]
[376067774,1753849846675,-460.0,0.00021167,2]
[376067776,1753849846684,-1026.88,0.00021167,2]
[376067778,1753849846693,-460.0,0.00021167,2]
[376067780,1753849846703,-3000.0,0.0002117,2]
[376067782,1753849846711,-156.37,0.0002117,3]
[376067784,1753849846720,-3000.0,0.0002118,2]
[376067786,1753849846729,-160.0,0.00021187,2]
[376067787,1753849846739,-3000.0,0.0002119,2]
[376067788,1753849846748,-3000.0,0.000212,2]
[376067789,1753849846757,-3000.0,0.0002121,2]
[376067790,1753849846766,-3000.0,0.0002122,2]
[376067791,1753849846777,-3000.0,0.0002123,2]
[376067792,1753849846786,-1791.86829323,0.0002124,2]
[376067793,1753849846797,-460.0,0.0002124,2]
[376067826,1753850160167,1551.0,0.0001879,2]
[376067828,1753850212615,198.2700353,0.0001851,2]
[376067835,1753850530823,200.44,0.0001906,120]
[376067837,1753850590373,232.493528,0.00013699,2]
[376067839,1753850665093,11840.855603,0.00018337,2]
[376067842,1753850766435,1000.0,0.00018377,2]
[376067843,1753850793998,-344.45875701,0.0001907,2]
[376067844,1753850794021,-300.0,0.00019141,2]
[376067845,1753850794043,-460.0,0.00019142,2]
[376067846,1753850794067,-938.29,0.00019142,2]
[376067847,1753850794091,-460.0,0.00019142,2]
[376067848,1753850794114,-460.0,0.00019142,2]
[376067849,1753850794137,-512.3,0.00019142,2]
[376067850,1753850794160,-460.0,0.00019142,2]
[376067851,1753850794184,-460.0,0.00019143,2]
[376067852,1753850794205,-500.0,0.00019164,2]
[376067853,1753850794227,-173.6056793,0.00019178,2]
[376067854,1753850794251,-938.29,0.00019416,2]
[376067855,1753850794274,-309.27,0.00019416,2]
[376067856,1753850794297,-460.0,0.00019416,2]
[376067857,1753850794320,-512.3,0.00019416,2]
[376067858,1753850794342,-460.0,0.00019416,2]
[376067859,1753850794365,-460.0,0.00019417,2]
[376067860,1753850794385,-387.01377428,0.00019421,2]
[376067861,1753850794411,-255.34,0.00019513,3]
[376067862,1753850794435,-766.02,0.00019513,3]
[376067863,1753850794456,-460.0,0.0001952,2]
[376067864,1753850794477,-460.89287944,0.0001952,2]
[376067865,1753850794498,-461.08712612,0.0001952,2]
[376067866,1753850794520,-460.0,0.0001952,2]
[376067867,1753850794540,-460.0,0.0001952,2]
[376067868,1753850794562,-460.0,0.0001952,2]
[376067869,1753850794584,-541.33,0.0001952,2]
[376067870,1753850794605,-466.68293373,0.0001952,2]
[376067871,1753850794625,-460.0,0.0001952,2]
[376067872,1753850794646,-432.55080491,0.0001952,2]
[376067873,1753850794667,-460.0,0.0001952,2]
[376067874,1753850794688,-464.76639035,0.00019521,2]
[376067875,1753850794709,-461.65167035,0.00019521,2]
[376067876,1753850794730,-460.0,0.00019521,2]
[376067877,1753850794750,-460.0,0.00019521,2]
[376067878,1753850794771,-460.0,0.00019521,2]
[376067879,1753850794792,-499.36205538,0.00019521,2]
[376067880,1753850794812,-460.54747465,0.00019521,2]
[376067881,1753850794833,-481.97205858,0.00019521,2]
[376067882,1753850794854,-462.32896444,0.00019521,2]
[376067883,1753850794876,-462.5573511,0.00019521,2]
[376067884,1753850794898,-460.0,0.00019521,2]
[376067885,1753850794919,-461.46121839,0.00019521,2]
[376067886,1753850794949,-464.49804467,0.00019521,2]
[376067887,1753850794970,-466.84009213,0.00019521,2]
[376067888,1753850794991,-460.0,0.00019521,2]
[376067889,1753850795011,-460.0,0.00019521,2]
[376067890,1753850795032,-462.47371454,0.00019521,2]
[376067891,1753850795053,-460.80760856,0.00019521,2]
[376067892,1753850795073,-460.0,0.00019521,2]
[376067893,1753850795095,-460.0,0.00019521,2]
[376067894,1753850795115,-460.0,0.00019521,2]
[376067895,1753850795135,-460.0,0.00019521,2]
[376067896,1753850795155,-464.35107728,0.00019521,2]
[376067897,1753850795176,-463.29545648,0.00019521,2]
[376067898,1753850795196,-460.0,0.00019521,2]
[376067899,1753850795216,-464.34561628,0.00019521,2]
[376067900,1753850795238,-465.49738114,0.00019521,2]
[376067901,1753850795259,-455.8376376,0.00019521,2]
[376067902,1753850795282,-460.0,0.00019521,2]
[376067903,1753850795302,-502.79654769,0.00019521,2]
[376067904,1753850795450,-466.11001482,0.00019521,2]
[376067905,1753850795475,-462.9252489,0.00019521,2]
[376067906,1753850795499,-386.14242188,0.00019521,2]
[376067909,1753850828659,8997.8,0.00023,30]
[376067910,1753850881620,-500.0,0.00019164,2]
[376067911,1753850881642,-460.0,0.0001952,2]
[376067912,1753850881663,-460.0,0.0001952,2]
[376067913,1753850881684,-460.0,0.0001952,2]
[376067914,1753850881902,-460.0,0.0001952,2]
[376067915,1753850881926,-336.77001806,0.0001952,2]
[376067916,1753850881949,-460.89190463,0.0001952,2]
[376067917,1753850881970,-460.0,0.0001952,2]
[376067918,1753850881991,-476.24885557,0.0001952,2]
[376067919,1753850882014,-838.22,0.0001952,2]
[376067920,1753850882036,-460.0,0.0001952,2]
[376067921,1753850882059,-473.98212416,0.0001952,2]
[376067922,1753850882081,-467.10386756,0.0001952,2]
[376067923,1753850882102,-443.80837542,0.0001952,2]
[376067924,1753850882124,-460.0,0.0001952,2]
[376067925,1753850882146,-282.48693469,0.0001952,2]
[376067926,1753850882169,-799.84,0.0001952,2]
[376067927,1753850882191,-460.0,0.0001952,2]
[376067928,1753850882212,-470.61217346,0.0001952,2]
[376067929,1753850882233,-460.0,0.0001952,2]
[376067930,1753850882253,-310.03574645,0.0001952,2]
[376067994,1753851031907,-460.0,0.00019142,2]
[376067996,1753851031918,-168.54597934,0.00019178,2]
[376067998,1753851031930,-281.95768232,0.00019178,2]
[376068000,1753851031943,-215.49633834,0.00019178,2]
[376068002,1753851031953,-460.0,0.00019416,2]
[376068004,1753851031962,-338.63705246,0.00019421,2]
[376068007,1753851031972,-300.0,0.00019519,2]
[376068010,1753851031982,-155.3188132,0.0001952,2]
[376068012,1753851031991,-683.71,0.0001952,2]
[376068014,1753851032000,-160.8486987,0.0001952,2]
[376068016,1753851032009,-480.55874758,0.0001952,2]
[376068019,1753851032019,-464.62981315,0.0001952,2]
[376068020,1753851032029,-460.0,0.0001952,2]
[376068021,1753851032038,-460.0,0.0001952,2]
[376068022,1753851032047,-462.98233372,0.0001952,2]
[376068023,1753851032057,-460.0,0.0001952,2]
[376068024,1753851032066,-465.75713213,0.0001952,2]
[376068025,1753851032076,-460.0,0.0001952,2]
[376068026,1753851032085,-463.62831925,0.0001952,2]
[376068027,1753851032094,-460.0,0.0001952,2]
[376068028,1753851032104,-460.0,0.0001952,2]
[376068029,1753851032113,-846.08,0.0001952,2]
[376068030,1753851032123,-460.0,0.0001952,2]
[376068031,1753851032133,-460.0,0.0001952,2]
[376068032,1753851032142,-460.0,0.0001952,2]
[376068033,1753851032152,-518.78,0.0001952,2]
[376068034,1753851032161,-448.58519894,0.0001952,2]
[376068035,1753851032171,-460.0,0.0001952,2]
[376068036,1753851032180,-473.43498444,0.0001952,2]
[376068037,1753851032190,-460.0,0.0001952,2]
[376068038,1753851032200,-462.29518797,0.0001952,2]
[376068039,1753851032209,-462.42983054,0.0001952,2]
[376068040,1753851032218,-463.18477833,0.0001952,2]
[376068041,1753851032227,-460.0,0.0001952,2]
[376068042,1753851032236,-460.0,0.0001952,2]
[376068043,1753851032247,-824.12,0.0001952,2]
[376068044,1753851032256,-434.56526197,0.0001952,2]
[376068045,1753851032266,-460.0,0.0001952,2]
[376068046,1753851032276,-227.36495524,0.0001952,2]
[376068047,1753851032285,-460.0,0.0001952,2]
[376068048,1753851032295,-460.0,0.0001952,2]
[376068049,1753851032304,-460.0,0.0001952,2]
[376068050,1753851032313,-464.16831374,0.0001952,2]
[376068051,1753851032323,-460.0,0.0001952,2]
[376068052,1753851032332,-73.85757812,0.00019521,2]
[376068053,1753851032341,-461.73144049,0.00019521,2]
[376068054,1753851032352,-460.0,0.00019521,2]
[376068055,1753851032362,-460.0,0.00019521,2]
[376068056,1753851032371,-459.8365811,0.00019521,2]
[376068057,1753851032381,-460.0,0.00019521,2]
[376068058,1753851032390,-460.0,0.00019521,2]
[376068059,1753851032401,-460.0,0.00019521,2]
[376068060,1753851032410,-511.48060649,0.00019521,2]
[376068061,1753851032420,-460.0,0.00019521,2]
[376068062,1753851032430,-460.0,0.00019521,2]
[376068063,1753851032439,-463.80019973,0.00019521,2]
[376068064,1753851032449,-460.0,0.00019521,2]
[376068065,1753851032458,-468.41733659,0.00019521,2]
[376068066,1753851032470,-464.9391449,0.00019521,2]
[376068067,1753851032480,-466.23137328,0.00019521,2]
[376068068,1753851032489,-460.0,0.00019521,2]
[376068069,1753851032499,-460.0,0.00019521,2]
[376068070,1753851032510,-328.40713643,0.00019521,2]
[376068071,1753851032519,-460.0,0.00019521,2]
[376068072,1753851032528,-500.0,0.00019521,2]
[376068073,1753851032537,-500.0,0.00019521,2]
[376068074,1753851032547,-516.87061871,0.00019521,2]
[376068075,1753851032557,-460.0,0.00019521,2]
[376068076,1753851032566,-564.33530264,0.00019521,2]
[376068077,1753851032575,-462.4678689,0.00019521,2]
[376068078,1753851032584,-460.0,0.00019521,2]
[376068079,1753851032594,-460.0,0.00019521,2]
[376068080,1753851032603,-463.08761285,0.00019521,2]
[376068081,1753851032612,-460.0,0.00019521,2]
[376068082,1753851032621,-460.0,0.00019521,2]
[376068083,1753851032632,-571.41,0.00019521,2]
[376068084,1753851032641,-460.0,0.00019521,2]
[376068085,1753851032651,-460.0,0.00019521,2]
[376068086,1753851032660,-460.0,0.00019521,2]
[376068087,1753851032671,-460.0,0.00019521,2]
[376068088,1753851032680,-460.0,0.00019521,2]
[376068089,1753851032690,-460.0,0.00019521,2]
[376068090,1753851032700,-475.0,0.00019521,2]
[376068091,1753851032709,-460.0,0.00019521,2]
[376068092,1753851032718,-460.0,0.00019521,2]
[376068093,1753851032728,-460.0,0.00019521,2]